bitfinex/quotes_BTCUSD_20240703
["timestamp","ask_amount","ask_price","bid_price","bid_amount"]
[1720012595206,0.1,60339.0,60326.0,0.1602988]
[1720012595431,0.2602988,60339.0,60323.0,0.001]
[1720012595800,0.08823988,60338.0,60323.0,0.001]
[1720012596006,0.08823988,60338.0,60325.0,0.0593]
[1720012596338,0.08823988,60338.0,60327.0,0.0593]
[1720012596548,0.1,60339.0,60329.0,0.0593]
[1720012596748,0.111,60339.0,60328.0,0.001]
[1720012596942,0.111,60339.0,60327.0,0.02891867]
[1720012597814,0.111,60339.0,60327.0,0.08821867]
[1720012598335,0.111,60339.0,60329.0,0.0592]
[1720012598540,0.111,60339.0,60327.0,0.08801867]
[1720012598784,0.111,60339.0,60329.0,0.0591]
[1720012599006,0.111,60339.0,60329.0,0.06]
[1720012599007,0.124,60339.0,60329.0,0.06]
[1720012599205,0.124,60339.0,60329.0,0.001]
[1720012599412,0.124,60339.0,60329.0,0.06]
[1720012599413,0.21339,60339.0,60329.0,0.06]
[1720012599584,0.21339,60339.0,60327.0,0.02891867]
[1720012599585,0.111,60339.0,60333.0,0.059]
[1720012599786,0.008,60338.0,60333.0,0.059]
[1720012599961,0.108,60338.0,60335.0,0.059]
[1720012600316,0.008,60338.0,60335.0,0.059]
[1720012600546,0.008,60338.0,60331.0,0.059]
[1720012600866,0.024,60339.0,60331.0,0.059]
[1720012600867,0.013,60339.0,60331.0,0.059]
[1720012601085,0.013,60339.0,60329.0,0.001]
[1720012601086,0.013,60339.0,60330.0,0.059]
[1720012601296,0.013,60339.0,60336.0,0.059]
[1720012602058,0.018,60339.0,60334.0,0.02891867]
[1720012602253,0.005,60339.0,60335.0,0.059]
[1720012602742,0.011,60338.0,60336.0,0.059]
[1720012603116,0.005,60339.0,60337.0,0.059]
[1720012603296,0.0051,60339.0,60338.0,0.059]
[1720012603499,0.0111,60339.0,60338.0,0.059]
[1720012603682,0.0111,60339.0,60336.0,0.059]
[1720012604109,0.0051,60339.0,60338.0,0.059]
[1720012604398,0.0001,60339.0,60336.0,0.059]
[1720012604607,0.0001,60339.0,60334.0,0.02891867]
[1720012604800,0.03391,60339.0,60334.0,0.02891867]
[1720012605907,0.238,60338.0,60334.0,0.02891867]
[1720012606108,0.1,60337.0,60334.0,0.02891867]
[1720012606924,0.034792,60336.0,60334.0,0.02891867]
[1720012607126,0.1,60337.0,60334.0,0.02891867]
[1720012607322,0.11726413,60336.0,60334.0,0.02991867]
[1720012607522,0.13479312,60335.0,60334.0,0.02991867]
[1720012607725,0.13479321,60335.0,60334.0,0.02991867]
[1720012607927,0.13479321,60335.0,60334.0,0.02891867]
[1720012608125,0.14954321,60335.0,60328.0,0.0004]
[1720012608325,0.238,60331.0,60328.0,0.0004]
[1720012608527,0.03479321,60330.0,60328.0,0.0004]
[1720012608727,0.04513593,60329.0,60328.0,0.0004]
[1720012609555,0.01034272,60329.0,60328.0,0.0004]
[1720012609757,0.01034272,60329.0,60328.0,0.0594]
[1720012609960,0.0001,60339.0,60333.0,0.059]
[1720012609961,0.007,60337.0,60333.0,0.059]
[1720012610239,0.05666825,60336.0,60329.0,0.059]
[1720012610656,0.05666825,60335.0,60329.0,0.059]
[1720012610865,0.03213149,60339.0,60330.0,0.059]
[1720012611034,0.01034146,60334.0,60330.0,0.059]
[1720012611236,0.05666712,60333.0,60328.0,0.0004]
[1720012611413,0.05666712,60332.0,60329.0,0.059]
[1720012611667,0.0001,60339.0,60329.0,0.059]
[1720012611668,0.05666712,60331.0,60329.0,0.059]
[1720012611867,0.05773676,60330.0,60328.0,0.0004]
[1720012612065,0.01034146,60329.0,60328.0,0.0004]
[1720012612937,0.01034146,60336.0,60328.0,0.0004]
[1720012613189,0.05731432,60335.0,60329.0,0.001]
[1720012613402,0.05731432,60334.0,60329.0,0.001]
[1720012613601,0.05731432,60334.0,60328.0,0.02931867]
[1720012613850,0.005,60329.0,60328.0,0.02941867]
[1720012614128,0.06231826,60329.0,60328.0,0.02941867]
[1720012614350,0.05731826,60329.0,60328.0,0.02941867]
[1720012614627,0.05668349,60329.0,60328.0,0.02941867]
[1720012614817,0.04634172,60329.0,60328.0,0.08841867]
[1720012615216,0.04634172,60329.0,60328.0,0.24871747]
[1720012615325,0.1,60337.0,60330.0,0.059]
[1720012615531,0.05712839,60336.0,60330.0,0.059]
[1720012615733,0.05712839,60335.0,60330.0,0.059]
[1720012615932,0.05712839,60334.0,60330.0,0.059]
[1720012616157,0.05712839,60333.0,60328.0,0.18971747]
[1720012616356,0.05712839,60332.0,60329.0,0.001]
[1720012616577,0.011,60334.0,60329.0,0.06]
[1720012616578,0.05712839,60331.0,60329.0,0.06]
[1720012616780,0.05712839,60330.0,60329.0,0.06]
[1720012616982,0.05712839,60330.0,60329.0,0.059]
[1720012617226,0.05708705,60330.0,60329.0,0.059]
[1720012617584,0.04674576,60330.0,60329.0,0.2192988]
[1720012617783,0.12421806,60336.0,60333.0,0.059]
[1720012618024,0.15680091,60335.0,60333.0,0.059]
[1720012618184,0.18101897,60334.0,60332.0,0.059]
[1720012618386,0.15680091,60333.0,60331.0,0.059]
[1720012618592,0.0572141,60332.0,60331.0,0.059]
[1720012618810,0.0572141,60332.0,60330.0,0.059]
[1720012619010,0.12421806,60332.0,60331.0,0.059]
[1720012619210,0.15746326,60332.0,60331.0,0.059]
[1720012619818,0.28170219,60332.0,60331.0,0.059]
[1720012620020,0.28170219,60332.0,60329.0,0.1602988]
[1720012620021,0.15846326,60332.0,60330.0,0.059]
[1720012620182,0.28170437,60331.0,60330.0,0.059]
[1720012620385,0.1957337,60331.0,60328.0,0.02941867]
[1720012620637,0.05746326,60330.0,60328.0,0.02941867]
[1720012620857,0.05746326,60329.0,60328.0,0.02941867]
[1720012621251,0.10283927,60329.0,60328.0,0.0005]
[1720012621461,0.31084351,60329.0,60328.0,0.0005]
[1720012622221,0.24996121,60329.0,60328.0,0.0025]
[1720012622622,0.24879736,60329.0,60328.0,0.0025]
[1720012622826,0.24879736,60329.0,60328.0,0.0035]
[1720012623435,0.24879736,60329.0,60328.0,0.0025]
[1720012623638,0.25979736,60329.0,60328.0,0.0035]
[1720012623814,0.30589971,60329.0,60328.0,0.002413]
[1720012624298,0.29889971,60329.0,60328.0,0.001413]
[1720012624827,0.25279736,60329.0,60328.0,0.001413]
[1720012625509,0.26279736,60329.0,60328.0,0.002413]
[1720012625712,0.12034264,60329.0,60328.0,0.002413]
[1720012625940,0.25044937,60329.0,60328.0,0.001413]
[1720012626069,0.1,60329.0,60328.0,0.001413]
[1720012626271,0.25110512,60329.0,60328.0,0.002413]
[1720012626681,0.32014253,60329.0,60328.0,0.002413]
[1720012626901,0.58968513,60329.0,60328.0,0.002413]
[1720012627102,0.42174689,60329.0,60328.0,0.002413]
[1720012628554,0.42574689,60329.0,60328.0,0.002413]
[1720012629622,0.26554809,60329.0,60328.0,0.002413]
[1720012629847,0.43342904,60329.0,60328.0,0.002413]
[1720012630172,0.26554809,60329.0,60328.0,0.002413]
[1720012630366,0.26564809,60329.0,60328.0,0.002413]
[1720012630591,0.26564809,60329.0,60328.0,0.061413]
[1720012630748,0.4148542,60329.0,60328.0,0.061413]
[1720012630953,0.4148542,60329.0,60328.0,0.002413]
[1720012630954,0.26564809,60329.0,60328.0,0.002413]
[1720012631360,0.41485722,60329.0,60328.0,0.002413]
[1720012631558,0.32189356,60329.0,60328.0,0.061413]
[1720012631855,0.32189356,60329.0,60328.0,0.002413]
[1720012631856,0.1152,60329.0,60328.0,0.002413]
[1720012632061,0.2222299,60329.0,60328.0,0.002413]
[1720012632378,0.3222299,60329.0,60328.0,0.002413]
[1720012632572,0.17302664,60329.0,60328.0,0.061413]
[1720012632780,0.07302664,60329.0,60328.0,0.362713]
[1720012632976,0.07302664,60329.0,60328.0,0.5230118]
[1720012632977,0.1974497,60329.0,60328.0,0.5230118]
[1720012633314,0.06278448,60329.0,60328.0,0.5230118]
[1720012633523,0.06288448,60329.0,60328.0,0.5230118]
[1720012633930,0.05188448,60329.0,60328.0,0.5220118]
[1720012634313,0.0044,60329.0,60328.0,0.7684118]
[1720012634801,0.0064,60329.0,60328.0,0.7684118]
[1720012635159,0.0064,60329.0,60328.0,0.7984118]
[1720012635558,0.0023,60329.0,60328.0,0.7984118]
[1720012635762,0.07525514,60336.0,60328.0,0.87825298]
[1720012635978,0.03900775,60335.0,60334.0,0.059]
[1720012636345,0.03900775,60335.0,60334.0,0.6274]
[1720012636568,0.03900775,60335.0,60334.0,0.7876988]
[1720012637092,0.03900775,60335.0,60334.0,0.7875988]
[1720012637299,0.00083,60339.0,60338.0,0.0589]
[1720012637502,0.00083,60339.0,60338.0,0.08781867]
[1720012638034,0.00083,60339.0,60338.0,0.08771867]
[1720012638231,0.00083,60339.0,60338.0,0.08761867]
[1720012638232,0.04010495,60339.0,60338.0,0.08761867]
[1720012638487,0.05044465,60339.0,60338.0,0.08761867]
[1720012638688,0.00083,60339.0,60338.0,0.08761867]
[1720012639023,0.00083,60339.0,60338.0,0.24791747]
[1720012639220,0.01116969,60339.0,60338.0,0.49071747]
[1720012639421,0.00083,60339.0,60338.0,0.82501747]
[1720012639626,0.00083,60339.0,60338.0,0.79491747]
[1720012639845,0.00083,60339.0,60338.0,0.87740922]
[1720012641220,0.00083,60339.0,60338.0,0.79481747]
[1720012641901,0.00083,60339.0,60338.0,0.79471747]
[1720012642113,0.00083,60339.0,60338.0,0.79461747]
[1720012642313,0.00083,60339.0,60338.0,0.82461747]
[1720012642543,0.00083,60339.0,60338.0,0.7956988]
[1720012643381,0.00083,60339.0,60338.0,0.87626868]
[1720012643382,0.00883,60339.0,60338.0,0.87626868]
[1720012643788,0.00883,60339.0,60338.0,0.88326868]
[1720012644251,0.00883,60339.0,60338.0,0.88316868]
[1720012644645,0.00883,60339.0,60338.0,0.8034988]
[1720012644846,0.00883,60339.0,60338.0,1.3403988]
[1720012644847,0.00083,60339.0,60338.0,1.3403988]
[1720012645008,0.00836,60347.0,60346.0,0.6516]
[1720012645203,0.00836,60347.0,60346.0,0.84081747]
[1720012645706,0.00836,60347.0,60346.0,0.81081747]
[1720012646328,0.00836,60347.0,60346.0,0.84081747]
[1720012646532,0.00836,60347.0,60346.0,0.92589922]
[1720012647641,0.00836,60347.0,60346.0,1.22569922]
[1720012648047,0.00836,60347.0,60346.0,1.22469922]
[1720012648229,0.066384,60364.0,60363.0,0.029]
[1720012648429,0.1,60368.0,60361.0,0.058]
[1720012648642,0.066382,60366.0,60361.0,0.058]
[1720012648839,0.066382,60366.0,60360.0,0.02891867]
[1720012648840,0.08015582,60365.0,60360.0,0.02891867]
[1720012649095,0.0342,60364.0,60360.0,0.02891867]
[1720012649363,0.1342,60364.0,60360.0,0.02891867]
[1720012649551,0.1342,60364.0,60360.0,0.02881867]
[1720012649951,0.1342,60364.0,60360.0,0.08671867]
[1720012650156,0.1,60364.0,60360.0,0.08671867]
[1720012650333,0.166382,60366.0,60362.0,0.0579]
[1720012650534,0.166382,60366.0,60364.0,0.0579]
[1720012650535,0.1,60365.0,60364.0,0.0579]
[1720012650735,0.066382,60366.0,60362.0,0.0579]
[1720012651141,0.066382,60366.0,60363.0,0.0579]
[1720012651342,0.1,60367.0,60363.0,0.0579]
[1720012651543,0.1,60367.0,60365.0,0.0579]
[1720012651727,0.066379,60368.0,60365.0,0.0579]
[1720012651931,0.066379,60368.0,60367.0,0.0579]
[1720012652304,0.066379,60368.0,60362.0,0.001]
[1720012652415,0.008,60366.0,60363.0,0.001]
[1720012652934,0.066379,60368.0,60362.0,0.0579]
[1720012653130,0.066379,60368.0,60362.0,0.0578]
[1720012653354,0.066379,60368.0,60367.0,0.001]
[1720012653355,0.074379,60368.0,60367.0,0.001]
[1720012654074,0.074379,60368.0,60367.0,0.0009]
[1720012654493,0.008,60368.0,60367.0,0.6406]
[1720012654802,0.008,60368.0,60367.0,0.81991076]
[1720012655316,0.008,60368.0,60367.0,0.82971747]
[1720012655469,0.008,60368.0,60367.0,0.83061747]
[1720012655667,0.0314489,60372.0,60367.0,0.02981867]
[1720012655668,0.0656489,60372.0,60367.0,0.02981867]
[1720012655852,0.1342,60372.0,60367.0,0.02981867]
[1720012656658,0.1342,60372.0,60367.0,0.03081867]
[1720012657076,0.07850897,60372.0,60367.0,0.02981867]
[1720012657276,0.17850897,60372.0,60367.0,0.02981867]
[1720012657497,0.1342,60372.0,60367.0,0.02971867]
[1720012657711,0.1342,60372.0,60367.0,0.02961867]
[1720012657902,0.1342,60372.0,60367.0,0.02861867]
[1720012658683,0.1342,60372.0,60367.0,0.02951867]
[1720012659503,0.1,60372.0,60367.0,0.02951867]
[1720012659702,0.0897936,60373.0,60367.0,0.02951867]
[1720012659703,0.0897936,60373.0,60367.0,0.08741867]
[1720012659887,0.0897936,60373.0,60368.0,0.2180988]
[1720012660087,0.0001,60372.0,60369.0,0.0578]
[1720012660289,0.0001,60372.0,60370.0,0.1602988]
[1720012660570,0.0001,60372.0,60371.0,0.2488]
[1720012660754,0.0001,60372.0,60371.0,0.3066]
[1720012661423,0.0001,60372.0,60371.0,0.2488]
[1720012661624,0.0001,60372.0,60370.0,0.1602988]
[1720012661625,0.0001,60372.0,60370.0,0.001]
[1720012661940,0.02112091,60372.0,60370.0,0.001]
[1720012662140,0.0001,60372.0,60370.0,0.001]
[1720012662887,0.0001,60372.0,60367.0,0.02841867]
[1720012663137,0.0002,60372.0,60367.0,0.02841867]
[1720012663918,0.21218574,60371.0,60370.0,0.002]
[1720012664083,0.45018574,60371.0,60370.0,0.002]
[1720012664282,0.001,60369.0,60367.0,0.0004]
[1720012664518,0.54918574,60371.0,60367.0,0.0004]
[1720012664519,0.03018574,60368.0,60367.0,0.0004]
[1720012664980,0.1,60370.0,60367.0,0.0004]
[1720012665349,0.1,60370.0,60367.0,0.0005]
[1720012665548,0.0082,60372.0,60367.0,0.0015]
[1720012665749,0.03073288,60371.0,60367.0,0.0015]
[1720012665961,0.0002,60372.0,60368.0,0.0578]
[1720012666298,0.01,60370.0,60368.0,0.0578]
[1720012666495,0.01,60370.0,60369.0,0.3773]
[1720012666727,0.01,60370.0,60369.0,0.636]
[1720012666929,0.0002,60372.0,60371.0,0.0578]
[1720012667141,0.0132,60372.0,60371.0,0.0578]
[1720012668518,0.0002,60372.0,60371.0,0.0578]
[1720012669767,0.0062,60372.0,60371.0,0.0578]
[1720012669993,0.0062,60372.0,60371.0,0.0588]
[1720012672588,0.0062,60372.0,60371.0,0.001]
[1720012673013,0.01802897,60372.0,60371.0,0.001]
[1720012673216,0.0062,60372.0,60371.0,0.001]
[1720012673759,0.03778388,60372.0,60371.0,0.001]
[1720012674411,0.21878388,60372.0,60371.0,0.001]
[1720012674579,0.45678388,60372.0,60371.0,0.001]
[1720012674780,0.62842372,60372.0,60371.0,0.001]
[1720012675025,0.62942372,60372.0,60371.0,0.001]
[1720012675825,0.62879966,60372.0,60371.0,0.001]
[1720012676033,0.62779966,60372.0,60371.0,0.001]
[1720012676892,0.13715982,60372.0,60371.0,0.001]
[1720012677077,0.03715982,60372.0,60371.0,0.001]
[1720012677741,0.03715982,60372.0,60371.0,0.0588]
[1720012678470,0.03715982,60372.0,60371.0,0.6257]
[1720012678722,0.0062,60372.0,60371.0,0.6257]
[1720012678921,0.0062,60372.0,60371.0,0.001]
[1720012679268,0.03746989,60372.0,60371.0,0.001]
[1720012680118,0.05939275,60372.0,60371.0,0.001]
[1720012680386,0.06039275,60372.0,60371.0,0.001]
[1720012680631,0.24039275,60372.0,60371.0,0.001]
[1720012680908,0.34039275,60372.0,60371.0,0.001]
[1720012681194,0.13746989,60372.0,60371.0,0.001]
[1720012681913,0.03746989,60372.0,60371.0,0.001]
[1720012682162,0.13746989,60372.0,60371.0,0.001]
[1720012683303,0.03746989,60372.0,60371.0,0.001]
[1720012683597,0.10551446,60372.0,60371.0,0.001]
[1720012683811,0.32950447,60372.0,60371.0,0.001]
[1720012684071,0.33050447,60372.0,60371.0,0.001]
[1720012684321,0.33100142,60372.0,60371.0,0.001]
[1720012684564,0.2068675,60372.0,60371.0,0.001]
[1720012684791,0.13782246,60372.0,60371.0,0.001]
[1720012685466,0.21713875,60372.0,60371.0,0.001]
[1720012686608,0.13782246,60372.0,60371.0,0.001]
[1720012687401,0.13813034,60372.0,60371.0,0.001]
[1720012687846,0.36785733,60372.0,60371.0,0.001]
[1720012688076,0.28743669,60372.0,60371.0,0.001]
[1720012688311,0.52543669,60372.0,60371.0,0.001]
[1720012688547,0.28643669,60372.0,60371.0,0.001]
[1720012688777,0.28743669,60372.0,60371.0,0.001]
[1720012689477,0.45515421,60372.0,60371.0,0.001]
[1720012690409,0.25589377,60372.0,60371.0,0.001]
[1720012690616,0.28829551,60372.0,60371.0,0.001]
[1720012690907,0.11243391,60372.0,60371.0,0.001]
[1720012691136,0.16786807,60372.0,60371.0,0.001]
[1720012691391,0.16788563,60372.0,60371.0,0.001]
[1720012691594,0.16788461,60372.0,60371.0,0.001]
[1720012691800,0.001,60375.0,60371.0,0.001]
[1720012692003,0.001,60373.0,60371.0,0.001]
[1720012692620,0.1612988,60372.0,60371.0,0.001]
[1720012692841,1.36103946,60372.0,60371.0,0.001]
[1720012693046,1.36045462,60372.0,60371.0,0.001]
[1720012693255,1.60522983,60372.0,60371.0,0.002]
[1720012693457,1.53545462,60372.0,60371.0,0.001]
[1720012693660,1.53545462,60372.0,60367.0,0.0005]
[1720012693661,0.601,60368.0,60367.0,0.0005]
[1720012693879,0.8612988,60368.0,60367.0,0.0005]
[1720012694083,0.8612988,60368.0,60346.0,0.02801867]
[1720012694084,0.0352,60354.0,60346.0,0.02801867]
[1720012694294,0.14920304,60348.0,60345.0,0.2619]
[1720012694494,0.1,60347.0,60341.0,0.259]
[1720012694915,0.0999,60347.0,60341.0,0.3168]
[1720012695380,0.12428378,60342.0,60341.0,0.3168]
[1720012695585,0.0999,60347.0,60341.0,0.3168]
[1720012695790,0.16793353,60353.0,60341.0,0.3168]
[1720012695995,0.001,60352.0,60341.0,0.259]
[1720012696193,0.239,60349.0,60341.0,0.259]
[1720012696399,0.001,60348.0,60341.0,0.259]
[1720012696611,0.001,60347.0,60341.0,0.271]
[1720012697019,0.12786934,60348.0,60341.0,0.259]
[1720012697222,0.02786934,60348.0,60341.0,0.3168]
[1720012697455,0.1241862,60342.0,60341.0,0.259]
[1720012697661,0.2241862,60342.0,60341.0,0.27]
[1720012698073,0.1,60342.0,60341.0,0.3278]
[1720012698680,0.1,60343.0,60342.0,0.0578]
[1720012699006,0.12824126,60343.0,60342.0,0.0578]
[1720012699208,0.1,60343.0,60342.0,0.0578]
[1720012699420,0.1241862,60345.0,60343.0,0.0578]
[1720012699421,0.1,60344.0,60343.0,0.0578]
[1720012699615,0.12824126,60344.0,60343.0,0.0578]
[1720012699831,0.16853873,60357.0,60343.0,0.0578]
[1720012699832,0.12410276,60347.0,60346.0,0.3201]
[1720012700041,0.0342,60366.0,60354.0,0.0578]
[1720012700042,0.12410276,60355.0,60354.0,0.0578]
[1720012700244,0.1478,60370.0,60356.0,0.0578]
[1720012700245,0.12410276,60359.0,60356.0,0.0578]
[1720012700463,0.02830124,60358.0,60355.0,0.0578]
[1720012700662,0.02830124,60358.0,60353.0,0.29031867]
[1720012700663,0.02830124,60357.0,60353.0,0.29031867]
[1720012700866,0.12410276,60356.0,60353.0,0.29031867]
[1720012701071,0.02820124,60355.0,60353.0,0.29031867]
[1720012701271,0.12410276,60356.0,60353.0,0.02801867]
[1720012701272,0.12400276,60356.0,60353.0,0.02801867]
[1720012701453,0.1,60355.0,60353.0,0.02801867]
[1720012701656,0.1,60359.0,60353.0,0.02801867]
[1720012701858,0.001,60356.0,60353.0,0.02801867]
[1720012702058,0.001,60356.0,60341.0,0.0288]
[1720012702059,0.001,60353.0,60341.0,0.3202]
[1720012702321,0.2379,60351.0,60341.0,0.3202]
[1720012702576,0.2379,60351.0,60341.0,0.2624]
[1720012702577,0.1,60350.0,60341.0,0.2624]
[1720012703634,0.001,60349.0,60341.0,0.2624]
[1720012704289,0.001,60349.0,60338.0,0.001113]
[1720012704290,0.238,60344.0,60338.0,0.001113]
[1720012704538,0.1,60343.0,60338.0,0.001113]
[1720012705266,0.238,60339.0,60338.0,0.001113]
[1720012705720,0.1,60339.0,60338.0,0.001113]
[1720012706774,0.1,60342.0,60338.0,0.001113]
[1720012707316,0.1,60342.0,60338.0,0.002113]
[1720012707928,0.1,60342.0,60338.0,0.001113]
[1720012708156,0.109,60342.0,60338.0,0.002113]
[1720012708369,0.109,60342.0,60341.0,0.0001]
[1720012708763,0.27780299,60342.0,60341.0,0.0001]
[1720012708982,0.17698474,60342.0,60341.0,0.0001]
[1720012709191,0.20907004,60342.0,60341.0,0.0001]
[1720012709667,0.50907004,60342.0,60341.0,0.0001]
[1720012710127,0.99662466,60342.0,60341.0,0.0001]
[1720012711120,0.99662466,60342.0,60341.0,0.0011]
[1720012711121,0.15617004,60342.0,60341.0,0.0011]
[1720012711530,0.13308474,60342.0,60341.0,0.0011]
[1720012711733,0.16306288,60342.0,60341.0,0.0021]
[1720012712274,0.16506288,60342.0,60341.0,0.0021]
[1720012712480,0.16506288,60342.0,60341.0,0.0022]
[1720012712481,0.16492927,60342.0,60341.0,0.0022]
[1720012712692,0.14408474,60342.0,60341.0,0.0022]
[1720012712935,0.1948095,60342.0,60341.0,0.0022]
[1720012714170,0.1928095,60342.0,60341.0,0.0022]
[1720012714570,0.1948095,60342.0,60341.0,0.0022]
[1720012714977,0.1938095,60342.0,60341.0,0.06]
[1720012715212,0.04308474,60342.0,60341.0,0.06]
[1720012716395,0.04308474,60342.0,60341.0,0.0022]
[1720012717028,0.07129321,60342.0,60341.0,0.0022]
[1720012717239,0.09386729,60342.0,60341.0,0.0022]
[1720012717443,0.07486729,60342.0,60341.0,0.0002]
[1720012717851,0.07586729,60342.0,60341.0,0.0002]
[1720012718850,0.07386729,60342.0,60341.0,0.0002]
[1720012719061,0.07286729,60342.0,60341.0,0.0002]
[1720012719262,0.04565882,60342.0,60341.0,0.0072]
[1720012719464,0.05365882,60342.0,60341.0,0.0082]
[1720012719639,0.05265882,60342.0,60341.0,0.0082]
[1720012720623,0.04565882,60342.0,60341.0,0.0072]
[1720012721023,0.05265882,60342.0,60341.0,0.0082]
[1720012721299,0.05165882,60342.0,60341.0,0.0012]
[1720012721513,0.08177451,60342.0,60341.0,0.0012]
[1720012721684,0.08277451,60342.0,60341.0,0.0012]
[1720012722344,0.06120043,60342.0,60341.0,0.0012]
[1720012722556,0.08170374,60342.0,60341.0,0.0012]
[1720012722755,0.06020043,60342.0,60341.0,0.0012]
[1720012722938,0.08239771,60342.0,60341.0,0.0012]
[1720012723105,0.08339771,60342.0,60341.0,0.0012]
[1720012724089,0.05328202,60342.0,60341.0,0.3822]
[1720012724304,0.03108474,60342.0,60341.0,0.62265462]
[1720012724510,0.03108474,60342.0,60341.0,0.95121592]
[1720012724720,0.03108474,60342.0,60341.0,0.88665462]
[1720012724932,0.0004,60350.0,60349.0,0.0578]
[1720012725144,0.0004,60350.0,60349.0,0.6256]
[1720012726461,0.0014,60350.0,60349.0,0.6336]
[1720012726664,0.0024,60350.0,60349.0,0.6476]
[1720012727111,0.0024,60350.0,60349.0,0.5898]
[1720012727314,0.01887395,60357.0,60349.0,0.022]
[1720012727517,0.238,60353.0,60349.0,0.022]
[1720012727724,0.01887395,60352.0,60349.0,0.022]
[1720012727900,0.01887395,60351.0,60349.0,0.022]
[1720012728141,0.01887395,60350.0,60349.0,0.022]
[1720012728359,0.01703895,60350.0,60349.0,0.022]
[1720012728566,0.01703895,60350.0,60341.0,0.0002]
[1720012728567,0.23325005,60350.0,60341.0,0.0002]
[1720012728770,0.238,60346.0,60341.0,0.0002]
[1720012728978,0.11703895,60345.0,60341.0,0.0002]
[1720012729192,0.01703895,60344.0,60341.0,0.0002]
[1720012729403,0.01703895,60343.0,60341.0,0.0002]
[1720012729614,0.1,60345.0,60341.0,0.0002]
[1720012729615,0.01703895,60342.0,60341.0,0.0002]
[1720012730897,0.01672333,60342.0,60341.0,0.0002]
[1720012731968,0.01672333,60342.0,60341.0,0.0012]
[1720012732377,0.01672333,60342.0,60341.0,0.0002]
[1720012732378,0.0407957,60342.0,60341.0,0.0002]
[1720012732712,0.2875957,60342.0,60341.0,0.0002]
[1720012732912,0.2875957,60342.0,60341.0,0.0012]
[1720012733541,0.2875957,60342.0,60341.0,0.0022]
[1720012733764,0.2876957,60342.0,60341.0,0.0022]
[1720012733935,0.2876957,60342.0,60341.0,0.0032]
[1720012734275,0.2876957,60342.0,60341.0,0.0022]
[1720012734494,0.27107237,60342.0,60341.0,0.0022]
[1720012734672,0.28740397,60342.0,60341.0,0.0022]
[1720012734872,0.1002,60342.0,60341.0,0.0022]
[1720012735081,0.2544885,60342.0,60341.0,0.0022]
[1720012735280,0.2611305,60342.0,60341.0,0.0022]
[1720012735495,0.3611305,60342.0,60341.0,0.0022]
[1720012735864,0.1231305,60342.0,60341.0,0.0022]
[1720012736257,0.15267779,60342.0,60341.0,0.0022]
[1720012736483,0.05267779,60342.0,60341.0,0.0022]
[1720012736657,0.15267779,60342.0,60341.0,0.0022]
[1720012737329,0.30157978,60342.0,60341.0,0.0002]
[1720012737456,0.18471047,60342.0,60341.0,0.0002]
[1720012737657,0.3522728,60342.0,60341.0,0.0012]
[1720012737896,0.35706357,60342.0,60341.0,0.0012]
[1720012738094,0.35706357,60342.0,60341.0,0.0002]
[1720012738095,0.35506357,60342.0,60341.0,0.0002]
[1720012738331,0.20602735,60342.0,60341.0,0.0002]
[1720012738535,0.20102735,60342.0,60341.0,0.0002]
[1720012739038,0.20802735,60342.0,60341.0,0.0012]
[1720012740654,0.20777438,60342.0,60341.0,0.00114226]
[1720012740863,0.1594532,60342.0,60341.0,0.00114226]
[1720012741226,0.0594532,60342.0,60341.0,0.00114226]
[1720012741434,0.2062532,60342.0,60341.0,0.00114226]
[1720012741636,0.37205147,60342.0,60341.0,0.00114226]
[1720012741788,0.50305662,60342.0,60341.0,0.00114226]
[1720012742167,1.26335542,60342.0,60341.0,0.00114226]
[1720012742368,1.28635542,60342.0,60341.0,0.00114226]
[1720012742953,1.28135542,60342.0,60341.0,0.00114226]
[1720012743279,1.19949324,60342.0,60341.0,0.00114226]
[1720012743450,1.28257655,60342.0,60341.0,0.00114226]
[1720012743995,1.45757655,60342.0,60341.0,0.00114226]
[1720012744203,0.6,60339.0,60338.0,0.001113]
[1720012744441,1.29839348,60339.0,60338.0,0.001113]
[1720012744850,1.20438211,60339.0,60338.0,0.001113]
[1720012746322,0.58138211,60339.0,60338.0,0.001113]
[1720012746522,0.51536593,60339.0,60338.0,0.001113]
[1720012746725,0.51536593,60339.0,60338.0,0.002113]
[1720012746726,0.59601328,60339.0,60338.0,0.002113]
[1720012747007,0.70554513,60339.0,60338.0,0.002113]
[1720012747134,0.72290918,60339.0,60338.0,0.002113]
[1720012747486,0.60756875,60339.0,60338.0,0.003113]
[1720012747840,0.59656875,60339.0,60338.0,0.002113]
[1720012748069,0.19826995,60339.0,60338.0,0.002113]
[1720012748341,0.21110832,60339.0,60338.0,0.003113]
[1720012748540,0.31110832,60339.0,60338.0,0.003113]
[1720012749471,0.21080085,60339.0,60338.0,0.003113]
[1720012749676,0.27931986,60339.0,60338.0,0.003113]
[1720012749877,0.26536687,60339.0,60338.0,0.002113]
[1720012750083,0.27336687,60339.0,60338.0,0.003113]
[1720012750522,0.26536687,60339.0,60338.0,0.002113]
[1720012750952,0.27336687,60339.0,60338.0,0.003113]
[1720012751755,1.03366567,60339.0,60338.0,0.003113]
[1720012751954,0.45666567,60339.0,60338.0,0.003113]
[1720012752537,0.38684446,60339.0,60338.0,0.003113]
[1720012752940,0.38684446,60339.0,60338.0,0.318413]
[1720012752941,0.20354566,60339.0,60338.0,0.318413]
[1720012753466,0.20354566,60339.0,60338.0,0.318513]
[1720012753665,0.13697718,60339.0,60338.0,0.377313]
[1720012754077,0.18605428,60339.0,60338.0,0.377313]
[1720012754292,0.28595428,60339.0,60338.0,0.377313]
[1720012754709,0.03687718,60339.0,60338.0,0.637613]
[1720012754920,0.14411924,60339.0,60338.0,0.8616731]
[1720012755119,0.0199,60339.0,60338.0,0.8616731]